[Event "*** Titled Tuesday Blitz"]
[Site "Chess.com"]
[Date "2019.04.02"]
[Round "4"]
[White "Gabix_94"]
[Black "MITerryble"]
[Result "0-1"]
[WhiteElo "2573"]
[BlackElo "2834"]
[TimeControl "180+2"]
[EndTime "14:47:50 PDT"]
[Termination "MITerryble won by resignation"]

1. Nf3 {[%clk 0:03:01.9]} 1... Nf6 {[%clk 0:03:00.9]} 2. c4 {[%clk 0:03:01.9]}
2... b6 {[%clk 0:03:00.8]} 3. g3 {[%clk 0:03:02.4]} 3... Bb7 {[%clk 0:03:02.1]}
4. Bg2 {[%clk 0:03:04]} 4... g6 {[%clk 0:03:04]} 5. O-O {[%clk 0:03:05.4]} 5...
Bg7 {[%clk 0:03:05.3]} 6. Nc3 {[%clk 0:03:06.4]} 6... O-O {[%clk 0:03:06.4]} 7.
Re1 {[%clk 0:03:01.2]} 7... c5 {[%clk 0:03:05.2]} 8. e4 {[%clk 0:02:59.9]} 8...
d6 {[%clk 0:03:06.2]} 9. d4 {[%clk 0:02:59.5]} 9... cxd4 {[%clk 0:03:07.6]} 10.
Nxd4 {[%clk 0:03:01.4]} 10... Qc8 {[%clk 0:03:07.7]} 11. b3 {[%clk 0:02:58.9]}
11... Nbd7 {[%clk 0:03:06.1]} 12. Bb2 {[%clk 0:02:59.2]} 12... a6 {[%clk
0:03:06.9]} 13. Rc1 {[%clk 0:02:59.3]} 13... Re8 {[%clk 0:03:08.1]} 14. h3
{[%clk 0:02:57.1]} 14... Qb8 {[%clk 0:03:03.8]} 15. Kh2 {[%clk 0:02:49.8]} 15...
Qa7 {[%clk 0:03:03.1]} 16. a4 {[%clk 0:02:47.1]} 16... Rac8 {[%clk 0:03:03.7]}
17. Nc2 {[%clk 0:02:46.1]} 17... Nc5 {[%clk 0:03:02.2]} 18. Ne3 {[%clk
0:02:37.3]} 18... Nfxe4 {[%clk 0:02:58]} 19. Ned5 {[%clk 0:02:23.3]} 19... Bxd5
{[%clk 0:02:56]} 20. Qxd5 {[%clk 0:02:21]} 20... Nxc3 {[%clk 0:02:19.6]} 21.
Bxc3 {[%clk 0:02:20.1]} 21... Nxb3 {[%clk 0:02:20.1]} 22. Bxg7 {[%clk
0:02:10.4]} 22... Kxg7 {[%clk 0:02:22]} 23. Rc3 {[%clk 0:02:10.6]} 23... Nc5
{[%clk 0:02:20.8]} 24. Rce3 {[%clk 0:02:10.8]} 24... Qd7 {[%clk 0:02:13.8]} 25.
h4 {[%clk 0:02:05.1]} 25... Rc7 {[%clk 0:01:51]} 26. f4 {[%clk 0:02:00.7]} 26...
Qf5 {[%clk 0:01:46]} 27. Qd4+ {[%clk 0:01:59]} 27... Qf6 {[%clk 0:01:45.8]} 28.
Qd5 {[%clk 0:02:00.4]} 28... Nxa4 {[%clk 0:01:42.3]} 29. Bh3 {[%clk 0:01:58.4]}
29... Nc5 {[%clk 0:01:35]} 30. R1e2 {[%clk 0:01:57]} 30... a5 {[%clk 0:01:35]}
31. Rf3 {[%clk 0:01:58.2]} 31... a4 {[%clk 0:01:35.2]} 32. f5 {[%clk 0:01:59.5]}
32... e6 {[%clk 0:01:11.8]} 33. Qxd6 {[%clk 0:01:41.4]} 33... Rcc8 {[%clk
0:00:45.6]} 34. Qxb6 {[%clk 0:01:28.4]} 34... exf5 {[%clk 0:00:45]} 0-1

[Event "*** Titled Tuesday Blitz"]
[Site "Chess.com"]
[Date "2019.04.02"]
[Round "4"]
[White "nurgyulsalimova"]
[Black "Elshan1985"]
[Result "1-0"]
[WhiteElo "2510"]
[BlackElo "2749"]
[TimeControl "180+2"]
[EndTime "14:47:50 PDT"]
[Termination "nurgyulsalimova won by resignation"]

1. e4 {[%clk 0:03:01.9]} 1... e5 {[%clk 0:03:00.3]} 2. Nf3 {[%clk 0:03:01.9]}
2... Nc6 {[%clk 0:03:01.3]} 3. Bc4 {[%clk 0:03:00.4]} 3... Nf6 {[%clk
0:03:01.7]} 4. d3 {[%clk 0:03:00.8]} 4... Bc5 {[%clk 0:03:01.4]} 5. O-O {[%clk
0:02:59]} 5... d6 {[%clk 0:03:02.5]} 6. c3 {[%clk 0:02:59.4]} 6... a6 {[%clk
0:03:02.6]} 7. a4 {[%clk 0:02:55.4]} 7... h6 {[%clk 0:03:01.3]} 8. Nbd2 {[%clk
0:02:44.7]} 8... g5 {[%clk 0:03:01.2]} 9. d4 {[%clk 0:02:27.5]} 9... Ba7 {[%clk
0:02:52]} 10. dxe5 {[%clk 0:02:22.9]} 10... dxe5 {[%clk 0:02:52.6]} 11. Kh1
{[%clk 0:01:42.5]} 11... g4 {[%clk 0:02:50.7]} 12. Nh4 {[%clk 0:01:24.9]} 12...
Nh5 {[%clk 0:02:50]} 13. Nf5 {[%clk 0:01:19.3]} 13... Bxf5 {[%clk 0:02:36.7]}
14. exf5 {[%clk 0:01:21.2]} 14... Qh4 {[%clk 0:02:19.6]} 15. g3 {[%clk
0:01:17.4]} 15... Qg5 {[%clk 0:02:18.9]} 16. Qb3 {[%clk 0:01:05.9]} 16... O-O-O
{[%clk 0:02:09.4]} 17. Bxf7 {[%clk 0:01:00.7]} 17... Ng7 {[%clk 0:02:10.6]} 18.
Be6+ {[%clk 0:00:40.7]} 18... Kb8 {[%clk 0:02:11.2]} 19. Ne4 {[%clk 0:00:41.3]}
19... Qe7 {[%clk 0:02:12.4]} 20. Be3 {[%clk 0:00:27.8]} 20... Rhe8 {[%clk
0:02:07.3]} 21. Bxa7+ {[%clk 0:00:27.6]} 21... Nxa7 {[%clk 0:02:07.9]} 22. Bd5
{[%clk 0:00:26.4]} 22... c6 {[%clk 0:02:08]} 23. f6 {[%clk 0:00:27.1]} 23... Qc7
{[%clk 0:02:05.1]} 24. Bf7 {[%clk 0:00:21.4]} 24... Rf8 {[%clk 0:02:06]} 25. Bc4
{[%clk 0:00:21.2]} 25... Nh5 {[%clk 0:02:06.5]} 26. Nc5 {[%clk 0:00:21.4]} 26...
Ka8 {[%clk 0:02:01.7]} 27. Ne6 {[%clk 0:00:22.4]} 27... Qh7 {[%clk 0:01:58.8]}
28. Nxd8 {[%clk 0:00:22.8]} 28... Rxd8 {[%clk 0:02:00.1]} 29. Rad1 {[%clk
0:00:22.9]} 29... Rf8 {[%clk 0:02:01.2]} 30. Qb6 {[%clk 0:00:15.7]} 30... Qh8
{[%clk 0:01:51.7]} 31. Rd7 {[%clk 0:00:13.2]} 31... Rb8 {[%clk 0:01:50.8]} 32.
Bxa6 {[%clk 0:00:14.2]} 32... Qc8 {[%clk 0:01:49.3]} 33. Bxb7+ {[%clk
0:00:13.6]} 33... Rxb7 {[%clk 0:01:49.9]} 34. Qxb7+ {[%clk 0:00:14.8]} 34...
Qxb7 {[%clk 0:01:50.9]} 35. Rxb7 {[%clk 0:00:16.2]} 35... Nxf6 {[%clk
0:01:51.6]} 36. Rf7 {[%clk 0:00:17.2]} 1-0

[Event "*** Titled Tuesday Blitz"]
[Site "Chess.com"]
[Date "2019.04.02"]
[Round "4"]
[White "GadimbayliA"]
[Black "Hikaru"]
[Result "0-1"]
[WhiteElo "2800"]
[BlackElo "3189"]
[TimeControl "180+2"]
[EndTime "14:47:51 PDT"]
[Termination "Hikaru won by resignation"]

1. e4 {[%clk 0:03:01.9]} 1... d5 {[%clk 0:02:52]} 2. exd5 {[%clk 0:03:02.4]}
2... Qxd5 {[%clk 0:02:53.9]} 3. Nc3 {[%clk 0:03:03.2]} 3... Qa5 {[%clk
0:02:54.6]} 4. d4 {[%clk 0:03:04.1]} 4... c6 {[%clk 0:02:56.1]} 5. Nf3 {[%clk
0:03:05.1]} 5... Bf5 {[%clk 0:02:56.6]} 6. Bd2 {[%clk 0:03:05.4]} 6... e6 {[%clk
0:02:57.9]} 7. Bc4 {[%clk 0:03:06.4]} 7... Nf6 {[%clk 0:02:59]} 8. Nd5 {[%clk
0:03:06.7]} 8... Qd8 {[%clk 0:02:59.9]} 9. Nxf6+ {[%clk 0:03:08]} 9... Qxf6
{[%clk 0:03:00.4]} 10. Qe2 {[%clk 0:03:09.2]} 10... Nd7 {[%clk 0:02:54.1]} 11.
O-O-O {[%clk 0:02:44.7]} 11... Bg4 {[%clk 0:02:49]} 12. d5 {[%clk 0:02:13.7]}
12... Bxf3 {[%clk 0:02:47.5]} 13. gxf3 {[%clk 0:02:14.4]} 13... cxd5 {[%clk
0:02:45.9]} 14. Bxd5 {[%clk 0:02:15.5]} 14... O-O-O {[%clk 0:02:47.5]} 15. Qc4+
{[%clk 0:02:11.8]} 15... Bc5 {[%clk 0:02:38.4]} 16. Be4 {[%clk 0:02:12.3]} 16...
Kb8 {[%clk 0:02:39.4]} 17. Qb5 {[%clk 0:01:12.1]} 17... Bb6 {[%clk 0:02:40.6]}
18. Bc3 {[%clk 0:00:56.8]} 18... Qf4+ {[%clk 0:02:28.4]} 19. Kb1 {[%clk
0:00:57.3]} 19... Nc5 {[%clk 0:02:27.5]} 20. Bxg7 {[%clk 0:00:55.2]} 20... Rhg8
{[%clk 0:02:28.2]} 21. Bd4 {[%clk 0:00:41.5]} 21... Rxd4 {[%clk 0:01:36.8]} 22.
Rxd4 {[%clk 0:00:43.4]} 22... f5 {[%clk 0:01:37.9]} 23. Rhd1 {[%clk 0:00:18.1]}
23... fxe4 {[%clk 0:01:37.7]} 24. fxe4 {[%clk 0:00:20]} 24... Qc7 {[%clk
0:01:28.8]} 25. b4 {[%clk 0:00:16.3]} 25... a6 {[%clk 0:01:18.6]} 26. Qd3 {[%clk
0:00:06.4]} 26... Nxd3 {[%clk 0:01:19.4]} 0-1

[Event "*** Titled Tuesday Blitz"]
[Site "Chess.com"]
[Date "2019.04.02"]
[Round "4"]
[White "sergiochess83"]
[Black "Lion_DL"]
[Result "1-0"]
[WhiteElo "2734"]
[BlackElo "2464"]
[TimeControl "180+2"]
[EndTime "14:47:52 PDT"]
[Termination "sergiochess83 won by resignation"]

1. e4 {[%clk 0:03:01.9]} 1... Nc6 {[%clk 0:02:50.8]} 2. Nf3 {[%clk 0:03:00.8]}
2... d6 {[%clk 0:02:51.7]} 3. d4 {[%clk 0:02:59.2]} 3... Nf6 {[%clk 0:02:53.1]}
4. Nc3 {[%clk 0:02:50.5]} 4... Bg4 {[%clk 0:02:54.1]} 5. Be3 {[%clk 0:02:37.8]}
5... e5 {[%clk 0:02:53.6]} 6. Bb5 {[%clk 0:02:37.3]} 6... Nd7 {[%clk 0:02:53.5]}
7. Bxc6 {[%clk 0:02:31.1]} 7... bxc6 {[%clk 0:02:54.1]} 8. h3 {[%clk 0:02:32.6]}
8... Bh5 {[%clk 0:02:44.5]} 9. g4 {[%clk 0:02:31.6]} 9... Bg6 {[%clk 0:02:44.8]}
10. Qe2 {[%clk 0:02:19.8]} 10... Qb8 {[%clk 0:02:36.9]} 11. O-O-O {[%clk
0:02:18.9]} 11... Be7 {[%clk 0:02:36]} 12. dxe5 {[%clk 0:02:15.1]} 12... Nxe5
{[%clk 0:02:36.6]} 13. Nd4 {[%clk 0:02:14.8]} 13... c5 {[%clk 0:02:31.9]} 14.
Nf5 {[%clk 0:02:08.8]} 14... Bxf5 {[%clk 0:02:26.6]} 15. exf5 {[%clk 0:02:10.7]}
15... c6 {[%clk 0:02:17.9]} 16. f4 {[%clk 0:01:43.1]} 16... Nd7 {[%clk
0:02:19.1]} 17. Bf2 {[%clk 0:01:38.4]} 17... Kf8 {[%clk 0:02:09.3]} 18. g5
{[%clk 0:01:37.9]} 18... h6 {[%clk 0:02:00.7]} 19. Rhe1 {[%clk 0:01:36.3]} 19...
Qd8 {[%clk 0:01:56.6]} 20. h4 {[%clk 0:01:27.8]} 20... hxg5 {[%clk 0:01:55.2]}
21. fxg5 {[%clk 0:01:28.7]} 21... Rb8 {[%clk 0:01:52.9]} 22. Bg3 {[%clk
0:01:25.4]} 22... Bxg5+ {[%clk 0:01:50.3]} 23. hxg5 {[%clk 0:01:25.8]} 23...
Qxg5+ {[%clk 0:01:51.4]} 24. Qe3 {[%clk 0:01:27.3]} 24... Qxe3+ {[%clk
0:01:47.4]} 25. Rxe3 {[%clk 0:01:29.2]} 25... Ne5 {[%clk 0:01:32.9]} 26. Bxe5
{[%clk 0:01:26.7]} 26... dxe5 {[%clk 0:01:33.5]} 27. Rxe5 {[%clk 0:01:28.6]}
27... c4 {[%clk 0:01:32]} 28. Rc5 {[%clk 0:01:29.5]} 28... Rh5 {[%clk
0:01:27.3]} 29. Rf1 {[%clk 0:01:22.4]} 29... g6 {[%clk 0:01:27.8]} 30. Rxc6
{[%clk 0:01:21.9]} 30... gxf5 {[%clk 0:01:24.9]} 31. Rxc4 {[%clk 0:01:21.9]}
31... Kg7 {[%clk 0:01:26]} 32. Rc7 {[%clk 0:01:18.6]} 32... a6 {[%clk
0:01:23.4]} 33. Rc6 {[%clk 0:01:19]} 33... Ra8 {[%clk 0:01:24.1]} 34. a4 {[%clk
0:01:18.2]} 34... f6 {[%clk 0:01:16.6]} 35. Nd5 {[%clk 0:01:15.4]} 35... Rh4
{[%clk 0:01:12.3]} 36. b3 {[%clk 0:01:10.6]} 1-0

[Event "*** Titled Tuesday Blitz"]
[Site "Chess.com"]
[Date "2019.04.02"]
[Round "4"]
[White "INLOVEWITHF"]
[Black "cyber-alekhine2"]
[Result "1-0"]
[WhiteElo "2271"]
[BlackElo "2163"]
[TimeControl "180+2"]
[EndTime "14:48:10 PDT"]
[Termination "INLOVEWITHF won by resignation"]

1. e4 {[%clk 0:03:01.9]} 1... c5 {[%clk 0:02:59.9]} 2. Nf3 {[%clk 0:03:02.4]}
2... d6 {[%clk 0:03:00.4]} 3. d4 {[%clk 0:03:03.5]} 3... cxd4 {[%clk 0:03:01.8]}
4. Nxd4 {[%clk 0:03:05.3]} 4... Nf6 {[%clk 0:03:02.9]} 5. Nc3 {[%clk 0:03:06.8]}
5... g6 {[%clk 0:03:04.3]} 6. f3 {[%clk 0:03:01.8]} 6... Bg7 {[%clk 0:03:04.7]}
7. Be3 {[%clk 0:03:02.4]} 7... O-O {[%clk 0:03:04.4]} 8. Qd2 {[%clk 0:03:02.9]}
8... Nc6 {[%clk 0:03:04.8]} 9. g4 {[%clk 0:03:03.9]} 9... Bxg4 {[%clk
0:03:02.4]} 10. fxg4 {[%clk 0:03:03]} 10... Nxg4 {[%clk 0:03:03.5]} 11. Nxc6
{[%clk 0:03:03.8]} 11... bxc6 {[%clk 0:03:03.9]} 12. Bd4 {[%clk 0:03:05.5]}
12... e5 {[%clk 0:02:37.3]} 13. Bg1 {[%clk 0:03:01.5]} 13... Rb8 {[%clk
0:02:37.1]} 14. h3 {[%clk 0:03:02.3]} 14... Qh4+ {[%clk 0:02:36.9]} 15. Kd1
{[%clk 0:02:49.6]} 15... Rxb2 {[%clk 0:02:07.8]} 16. Bc4 {[%clk 0:02:43.8]}
16... d5 {[%clk 0:01:59.9]} 17. Bb3 {[%clk 0:02:42.2]} 17... d4 {[%clk
0:01:52.8]} 18. Na4 {[%clk 0:02:38.9]} 18... Ne3+ {[%clk 0:01:20.3]} 19. Kc1
{[%clk 0:02:31.1]} 19... Qxe4 {[%clk 0:00:42.2]} 20. Nxb2 {[%clk 0:02:28]} 20...
Qxh1 {[%clk 0:00:41.2]} 21. Qe1 {[%clk 0:02:15.6]} 21... Bh6 {[%clk 0:00:31.8]}
22. Kb1 {[%clk 0:02:16.4]} 22... Ng2 {[%clk 0:00:32.5]} 23. Qd1 {[%clk
0:02:12.6]} 23... Be3 {[%clk 0:00:19.9]} 24. Bxe3 {[%clk 0:02:12.9]} 24... Qxd1+
{[%clk 0:00:20.7]} 25. Nxd1 {[%clk 0:02:14.8]} 25... dxe3 {[%clk 0:00:21.9]} 26.
Nc3 {[%clk 0:02:02.5]} 26... Nf4 {[%clk 0:00:18.4]} 27. Kb2 {[%clk 0:02:02.1]}
27... Rd8 {[%clk 0:00:18.6]} 28. Re1 {[%clk 0:02:01.2]} 28... Nxh3 {[%clk
0:00:14.5]} 29. Rxe3 {[%clk 0:02:02]} 29... Nf4 {[%clk 0:00:14.7]} 30. Rxe5
{[%clk 0:02:02.4]} 30... Kf8 {[%clk 0:00:15.8]} 31. Re4 {[%clk 0:01:57.2]} 31...
g5 {[%clk 0:00:15.4]} 32. Re5 {[%clk 0:01:57.5]} 32... f6 {[%clk 0:00:15.2]} 33.
Rc5 {[%clk 0:01:55.7]} 33... Rd6 {[%clk 0:00:15.5]} 34. Ne4 {[%clk 0:01:56.4]}
34... Rd2 {[%clk 0:00:13]} 35. Rxc6 {[%clk 0:01:56.6]} 35... Re2 {[%clk
0:00:11.4]} 36. Nxf6 {[%clk 0:01:56.7]} 36... h5 {[%clk 0:00:07.5]} 37. Nh7+
{[%clk 0:01:57.2]} 37... Ke8 {[%clk 0:00:08]} 38. Nxg5 {[%clk 0:01:57]} 38...
Nd3+ {[%clk 0:00:09.3]} 39. Kc3 {[%clk 0:01:57.4]} 39... Nb4 {[%clk 0:00:11.2]}
40. Kxb4 {[%clk 0:01:57.7]} 1-0

[Event "*** Titled Tuesday Blitz"]
[Site "Chess.com"]
[Date "2019.04.02"]
[Round "4"]
[White "2nd_life"]
[Black "ChessQueen"]
[Result "0-1"]
[WhiteElo "2447"]
[BlackElo "2671"]
[TimeControl "180+2"]
[EndTime "14:48:11 PDT"]
[Termination "ChessQueen won on time"]

1. e4 {[%clk 0:02:59.5]} 1... c5 {[%clk 0:02:59.5]} 2. Nf3 {[%clk 0:02:59.2]}
2... Nc6 {[%clk 0:03:00.1]} 3. Bb5 {[%clk 0:02:55.7]} 3... g6 {[%clk 0:03:00.6]}
4. Bxc6 {[%clk 0:02:55.7]} 4... dxc6 {[%clk 0:03:01.4]} 5. d3 {[%clk 0:02:54.3]}
5... Nf6 {[%clk 0:03:00]} 6. h3 {[%clk 0:02:51.3]} 6... Qc7 {[%clk 0:02:46.4]}
7. Be3 {[%clk 0:02:49.4]} 7... Nd7 {[%clk 0:02:44.5]} 8. O-O {[%clk 0:02:41.9]}
8... Bg7 {[%clk 0:02:42.9]} 9. Qc1 {[%clk 0:02:27.7]} 9... b6 {[%clk 0:02:34.3]}
10. Bh6 {[%clk 0:02:26.9]} 10... Bf6 {[%clk 0:02:35.2]} 11. Re1 {[%clk
0:02:14.4]} 11... e5 {[%clk 0:02:26.3]} 12. c3 {[%clk 0:02:15.2]} 12... Ba6
{[%clk 0:02:21.2]} 13. d4 {[%clk 0:02:15.2]} 13... cxd4 {[%clk 0:02:22.5]} 14.
cxd4 {[%clk 0:02:15.3]} 14... O-O-O {[%clk 0:02:23.7]} 15. Bg5 {[%clk
0:00:58.6]} 15... exd4 {[%clk 0:02:12.1]} 16. Bxf6 {[%clk 0:00:48.2]} 16... Nxf6
{[%clk 0:02:12.8]} 17. e5 {[%clk 0:00:45.2]} 17... Nd5 {[%clk 0:01:59.2]} 18. a3
{[%clk 0:00:32.5]} 18... c5 {[%clk 0:01:55.1]} 19. Nbd2 {[%clk 0:00:31.4]} 19...
Nf4 {[%clk 0:01:53.6]} 20. Qc2 {[%clk 0:00:16.7]} 20... Nd3 {[%clk 0:01:27.8]}
21. Re4 {[%clk 0:00:10]} 21... Rhe8 {[%clk 0:01:28.5]} 22. Qa4 {[%clk 0:00:05]}
22... Bb7 {[%clk 0:01:24.9]} 23. Rh4 {[%clk 0:00:03.8]} 23... Kb8 {[%clk
0:01:17.9]} 24. Rxh7 {[%clk 0:00:03.8]} 24... Nxe5 {[%clk 0:01:18.6]} 25. Nxe5
{[%clk 0:00:05]} 25... Rxe5 {[%clk 0:01:19.3]} 26. Nc4 {[%clk 0:00:03.3]} 26...
Re7 {[%clk 0:01:17.3]} 27. Qc2 {[%clk 0:00:03]} 27... Rde8 {[%clk 0:01:15.5]}
28. Qd3 {[%clk 0:00:02.4]} 28... Re1+ {[%clk 0:01:14.8]} 0-1

[Event "*** Titled Tuesday Blitz"]
[Site "Chess.com"]
[Date "2019.04.02"]
[Round "4"]
[White "vgyogi"]
[Black "Keures"]
[Result "1-0"]
[WhiteElo "2149"]
[BlackElo "2158"]
[TimeControl "180+2"]
[EndTime "14:48:17 PDT"]
[Termination "vgyogi won by checkmate"]

1. d4 {[%clk 0:03:01.9]} 1... Nf6 {[%clk 0:02:59.3]} 2. Bg5 {[%clk 0:03:01.6]}
2... d5 {[%clk 0:02:58.8]} 3. Bxf6 {[%clk 0:03:02.1]} 3... gxf6 {[%clk
0:02:59.8]} 4. e3 {[%clk 0:03:03.7]} 4... c5 {[%clk 0:02:58.6]} 5. dxc5 {[%clk
0:02:55.5]} 5... Qa5+ {[%clk 0:02:58.8]} 6. c3 {[%clk 0:02:46.7]} 6... Qxc5
{[%clk 0:02:58.8]} 7. Nd2 {[%clk 0:02:40.8]} 7... e5 {[%clk 0:02:49.4]} 8. Ngf3
{[%clk 0:02:33.3]} 8... Nc6 {[%clk 0:02:43]} 9. Qa4 {[%clk 0:02:25.4]} 9... Bd7
{[%clk 0:02:26.1]} 10. Qh4 {[%clk 0:02:24.7]} 10... Be7 {[%clk 0:02:24.9]} 11.
Nb3 {[%clk 0:02:17.1]} 11... Qb6 {[%clk 0:02:21.2]} 12. Be2 {[%clk 0:02:13.8]}
12... a5 {[%clk 0:02:13.4]} 13. Qh6 {[%clk 0:01:32.3]} 13... a4 {[%clk
0:02:11.6]} 14. Nbd2 {[%clk 0:01:33.5]} 14... O-O-O {[%clk 0:02:04]} 15. b4
{[%clk 0:01:27.2]} 15... d4 {[%clk 0:01:51.8]} 16. cxd4 {[%clk 0:01:22.5]} 16...
exd4 {[%clk 0:01:51.7]} 17. O-O {[%clk 0:01:15.4]} 17... dxe3 {[%clk 0:01:46.1]}
18. fxe3 {[%clk 0:01:16.5]} 18... Rde8 {[%clk 0:01:26.7]} 19. Rfc1 {[%clk
0:01:15.3]} 19... Bxb4 {[%clk 0:01:18.6]} 20. Nc4 {[%clk 0:01:14]} 20... Qa7
{[%clk 0:01:09.7]} 21. a3 {[%clk 0:01:13.4]} 21... Be7 {[%clk 0:00:54.6]} 22.
Rab1 {[%clk 0:01:12.1]} 22... Kb8 {[%clk 0:00:49.3]} 23. Nb6 {[%clk 0:01:11.2]}
23... Bf5 {[%clk 0:00:37]} 24. Qf4+ {[%clk 0:01:07.4]} 24... Ne5 {[%clk
0:00:29.4]} 25. Nxe5 {[%clk 0:01:03.1]} 25... Bd6 {[%clk 0:00:13.4]} 26. Ned7+
{[%clk 0:01:04]} 26... Bxd7 {[%clk 0:00:03.5]} 27. Qxd6# {[%clk 0:01:05.3]} 1-0

[Event "*** Titled Tuesday Blitz"]
[Site "Chess.com"]
[Date "2019.04.02"]
[Round "4"]
[White "Gabrielian_Artur"]
[Black "Gentlejimmy7"]
[Result "1-0"]
[WhiteElo "2738"]
[BlackElo "2425"]
[TimeControl "180+2"]
[EndTime "14:48:29 PDT"]
[Termination "Gabrielian_Artur won by resignation"]

1. e4 {[%clk 0:03:01.9]} 1... e5 {[%clk 0:02:59.5]} 2. Nf3 {[%clk 0:03:02.6]}
2... Nc6 {[%clk 0:03:01]} 3. Bc4 {[%clk 0:03:02.6]} 3... Bc5 {[%clk 0:03:01.8]}
4. d3 {[%clk 0:03:03.5]} 4... Nf6 {[%clk 0:02:58.6]} 5. Bg5 {[%clk 0:03:03.9]}
5... h6 {[%clk 0:02:58.7]} 6. Bh4 {[%clk 0:03:04.8]} 6... d6 {[%clk 0:02:56.7]}
7. c3 {[%clk 0:03:05.1]} 7... g5 {[%clk 0:02:56]} 8. Bg3 {[%clk 0:03:05.6]} 8...
Bg4 {[%clk 0:02:55.4]} 9. Nbd2 {[%clk 0:03:05.7]} 9... Qd7 {[%clk 0:02:55.8]}
10. a4 {[%clk 0:02:55.7]} 10... a5 {[%clk 0:02:55.1]} 11. Bb5 {[%clk 0:02:48]}
11... Bb6 {[%clk 0:02:53]} 12. Nc4 {[%clk 0:02:47.5]} 12... O-O-O {[%clk
0:02:23.4]} 13. Nxb6+ {[%clk 0:02:47.8]} 13... cxb6 {[%clk 0:02:23.5]} 14. h3
{[%clk 0:02:49.1]} 14... Bh5 {[%clk 0:02:20.2]} 15. b4 {[%clk 0:02:48.8]} 15...
Kb8 {[%clk 0:02:20.3]} 16. bxa5 {[%clk 0:02:49.4]} 16... bxa5 {[%clk 0:02:21.1]}
17. Rb1 {[%clk 0:02:50.8]} 17... Ka8 {[%clk 0:02:20.5]} 18. Qb3 {[%clk
0:02:28.8]} 18... Bxf3 {[%clk 0:02:18.1]} 19. gxf3 {[%clk 0:02:29.7]} 19... Rb8
{[%clk 0:02:11.4]} 20. d4 {[%clk 0:02:16.9]} 20... Rhe8 {[%clk 0:02:03.8]} 21.
d5 {[%clk 0:02:17.2]} 21... Qc8 {[%clk 0:01:46.5]} 22. h4 {[%clk 0:02:06.8]}
22... g4 {[%clk 0:01:44.7]} 23. Qd1 {[%clk 0:02:04.5]} 23... Ne7 {[%clk
0:01:28.9]} 24. Bxe8 {[%clk 0:02:04.6]} 24... Qxc3+ {[%clk 0:01:30.5]} 25. Kf1
{[%clk 0:02:00]} 25... Rxe8 {[%clk 0:01:24.6]} 26. Kg2 {[%clk 0:01:49.2]} 26...
h5 {[%clk 0:01:05.5]} 27. Rb3 {[%clk 0:01:45.6]} 27... Qc4 {[%clk 0:00:51.9]}
28. Re1 {[%clk 0:01:41.6]} 28... Rc8 {[%clk 0:00:44]} 29. Rb5 {[%clk 0:01:37.7]}
29... Kb8 {[%clk 0:00:34.9]} 30. Re3 {[%clk 0:01:32.2]} 30... Ng6 {[%clk
0:00:31.4]} 31. Reb3 {[%clk 0:01:31.9]} 31... Rg8 {[%clk 0:00:31.8]} 32. Rxb7+
{[%clk 0:01:32]} 32... Ka8 {[%clk 0:00:33.3]} 33. R7b5 {[%clk 0:01:30.2]} 33...
gxf3+ {[%clk 0:00:34.4]} 34. Kh1 {[%clk 0:01:22.5]} 34... Qxa4 {[%clk
0:00:25.1]} 35. Rb8+ {[%clk 0:01:15.6]} 35... Ka7 {[%clk 0:00:26.5]} 36. R3b7+
{[%clk 0:01:16]} 36... Ka6 {[%clk 0:00:28]} 37. Qxa4 {[%clk 0:01:16.7]} 1-0

[Event "*** Titled Tuesday Blitz"]
[Site "Chess.com"]
[Date "2019.04.02"]
[Round "4"]
[White "ENEASZ"]
[Black "Maili15"]
[Result "1-0"]
[WhiteElo "2433"]
[BlackElo "2277"]
[TimeControl "180+2"]
[EndTime "14:48:36 PDT"]
[Termination "ENEASZ won by resignation"]

1. e4 {[%clk 0:03:01.9]} 1... c5 {[%clk 0:03:00.3]} 2. c3 {[%clk 0:03:03.2]}
2... d5 {[%clk 0:03:00.7]} 3. exd5 {[%clk 0:03:05.1]} 3... Qxd5 {[%clk 0:03:02]}
4. d4 {[%clk 0:03:06.7]} 4... Nf6 {[%clk 0:03:03.1]} 5. Nf3 {[%clk 0:03:07.7]}
5... e6 {[%clk 0:02:59.5]} 6. Na3 {[%clk 0:03:08.2]} 6... Qd8 {[%clk 0:02:59.6]}
7. Nc2 {[%clk 0:03:06]} 7... Nc6 {[%clk 0:03:00.6]} 8. Be2 {[%clk 0:03:02.9]}
8... Be7 {[%clk 0:03:01.5]} 9. O-O {[%clk 0:03:03.7]} 9... O-O {[%clk
0:03:02.4]} 10. Bg5 {[%clk 0:03:04]} 10... cxd4 {[%clk 0:03:02.9]} 11. Ncxd4
{[%clk 0:03:04.5]} 11... Nxd4 {[%clk 0:03:03.3]} 12. Nxd4 {[%clk 0:03:05.1]}
12... Nd5 {[%clk 0:03:03.5]} 13. Bxe7 {[%clk 0:03:05.6]} 13... Qxe7 {[%clk
0:03:05.4]} 14. Bf3 {[%clk 0:03:06.6]} 14... Bd7 {[%clk 0:03:02.6]} 15. Bxd5
{[%clk 0:03:03.5]} 15... exd5 {[%clk 0:03:03.2]} 16. Qf3 {[%clk 0:03:03.4]}
16... Qg5 {[%clk 0:02:56.8]} 17. Rad1 {[%clk 0:02:53.4]} 17... Rad8 {[%clk
0:02:52.5]} 18. Qg3 {[%clk 0:02:51.3]} 18... Qxg3 {[%clk 0:02:41.1]} 19. hxg3
{[%clk 0:02:53.2]} 19... Rfe8 {[%clk 0:02:39.8]} 20. f3 {[%clk 0:02:54]} 20...
Bc6 {[%clk 0:02:16.6]} 21. g4 {[%clk 0:02:54.4]} 21... g6 {[%clk 0:02:16.3]} 22.
Rfe1 {[%clk 0:02:54.6]} 22... Kf8 {[%clk 0:02:13.7]} 23. Rxe8+ {[%clk
0:02:54.2]} 23... Rxe8 {[%clk 0:02:11.8]} 24. Kf2 {[%clk 0:02:56.1]} 24... Ke7
{[%clk 0:02:07]} 25. Re1+ {[%clk 0:02:52.1]} 25... Kd7 {[%clk 0:01:57.2]} 26.
Rxe8 {[%clk 0:02:54]} 26... Kxe8 {[%clk 0:01:57.8]} 27. g5 {[%clk 0:02:55.9]}
27... Ke7 {[%clk 0:01:55.6]} 28. Ke3 {[%clk 0:02:56.4]} 28... Kd6 {[%clk
0:01:56.6]} 29. f4 {[%clk 0:02:51]} 29... Bd7 {[%clk 0:01:56.6]} 30. Nf3 {[%clk
0:02:47.5]} 30... Kc5 {[%clk 0:01:38.9]} 31. Ne5 {[%clk 0:02:46.8]} 31... Be6
{[%clk 0:01:38.5]} 32. g3 {[%clk 0:02:33.9]} 32... b5 {[%clk 0:01:32.1]} 33.
Nd3+ {[%clk 0:02:27.6]} 33... Kd6 {[%clk 0:01:14.8]} 34. Kd4 {[%clk 0:02:26.9]}
34... Bf5 {[%clk 0:01:14.7]} 35. Ne5 {[%clk 0:02:24.9]} 35... Be6 {[%clk
0:01:14.3]} 36. b4 {[%clk 0:02:21.8]} 36... a6 {[%clk 0:01:05.6]} 37. a3 {[%clk
0:02:22.3]} 37... Ke7 {[%clk 0:00:48.9]} 38. Kc5 {[%clk 0:02:17.5]} 38... f6
{[%clk 0:00:49]} 39. Nc6+ {[%clk 0:02:06.9]} 39... Kf7 {[%clk 0:00:47.4]} 40.
Nd8+ {[%clk 0:02:05.9]} 40... Ke7 {[%clk 0:00:48.3]} 41. Nxe6 {[%clk 0:01:27.8]}
41... Kxe6 {[%clk 0:00:50.2]} 42. gxf6 {[%clk 0:01:29.2]} 42... Kxf6 {[%clk
0:00:45.9]} 43. Kxd5 {[%clk 0:01:30.9]} 43... Kf5 {[%clk 0:00:47.1]} 44. c4
{[%clk 0:01:31.9]} 44... bxc4 {[%clk 0:00:45.2]} 45. Kxc4 {[%clk 0:01:33.8]}
45... Kg4 {[%clk 0:00:46.1]} 46. a4 {[%clk 0:01:35.3]} 46... Kxg3 {[%clk
0:00:47.3]} 47. b5 {[%clk 0:01:37]} 47... axb5+ {[%clk 0:00:48.3]} 48. axb5
{[%clk 0:01:34.2]} 48... h5 {[%clk 0:00:49.1]} 49. b6 {[%clk 0:01:35.7]} 49...
h4 {[%clk 0:00:50.3]} 50. b7 {[%clk 0:01:37.4]} 50... h3 {[%clk 0:00:51.6]} 51.
b8=Q {[%clk 0:01:39.3]} 51... h2 {[%clk 0:00:52.7]} 52. f5+ {[%clk 0:01:39.8]}
52... Kg2 {[%clk 0:00:50.7]} 53. Qxh2+ {[%clk 0:01:40.8]} 1-0